bitfinex/quotes_BTCUSD_20241223
["timestamp","ask_amount","ask_price","bid_price","bid_amount"]
[1734931263752,0.00400086,95572.0,95571.0,0.7744784]
[1734931263953,0.00400086,95572.0,95571.0,0.6244784]
[1734931264156,0.00500086,95572.0,95571.0,0.52317]
[1734931264499,8.6e-07,95572.0,95571.0,0.52317]
[1734931264814,0.00100086,95572.0,95571.0,0.52317]
[1734931265661,0.22900086,95572.0,95571.0,0.52317]
[1734931265989,0.25100086,95572.0,95571.0,0.52317]
[1734931266357,0.25100086,95572.0,95571.0,0.53017]
[1734931266560,0.35100086,95572.0,95571.0,0.45017]
[1734931266801,0.15100086,95572.0,95571.0,0.45017]
[1734931266980,0.35100086,95572.0,95571.0,0.45117]
[1734931267385,0.08250086,95572.0,95571.0,0.45117]
[1734931267803,0.08250086,95572.0,95571.0,0.60017]
[1734931268342,8.6e-07,95572.0,95571.0,0.60017]
[1734931269768,0.00200086,95572.0,95571.0,0.60017]
[1734931270203,8.6e-07,95572.0,95571.0,0.60017]
[1734931270411,8.6e-07,95572.0,95571.0,0.60617]
[1734931270655,8.6e-07,95572.0,95571.0,0.60017]
[1734931271088,0.08866456,95572.0,95571.0,0.45217]
[1734931271302,0.17086456,95572.0,95571.0,0.45217]
[1734931271676,0.17086456,95572.0,95571.0,0.37717]
[1734931272469,0.0822,95572.0,95571.0,0.37717]
[1734931272809,0.000171,95583.0,95579.0,0.15]
[1734931272943,0.000171,95583.0,95581.0,0.15]
[1734931273139,0.000171,95583.0,95582.0,0.359244]
[1734931273324,0.000171,95583.0,95582.0,1.028354]
[1734931274133,0.000171,95583.0,95582.0,1.1296624]
[1734931274439,0.000171,95583.0,95582.0,1.16853989]
[1734931274811,0.000171,95583.0,95582.0,1.1296624]
[1734931276288,0.000171,95583.0,95582.0,1.1356624]
[1734931276507,0.000171,95583.0,95582.0,1.1296624]
[1734931276832,0.000171,95583.0,95582.0,1.1366624]
[1734931277036,0.000171,95583.0,95582.0,1.1296624]
[1734931277440,0.000171,95583.0,95582.0,1.1366624]
[1734931278071,0.000171,95583.0,95582.0,1.035354]
[1734931278278,0.000171,95583.0,95582.0,1.028354]
[1734931278482,0.000171,95583.0,95582.0,0.66911]
[1734931279618,0.000171,95583.0,95582.0,0.67811]
[1734931279833,0.000171,95583.0,95582.0,0.81911]
[1734931280326,0.000171,95583.0,95582.0,0.82811]
[1734931280673,0.000171,95583.0,95582.0,0.9294184]
[1734931282436,0.000171,95583.0,95582.0,0.9204184]
[1734931282865,0.000171,95595.0,95594.0,0.359218]
[1734931283069,0.000171,95595.0,95594.0,1.19920017]
[1734931283263,0.000171,95595.0,95594.0,1.2345732]
[1734931283467,0.000171,95595.0,95594.0,1.1621542]
[1734931284047,0.000171,95595.0,95594.0,1.1681542]
[1734931284280,0.000171,95595.0,95594.0,1.1621542]
[1734931286700,0.000171,95595.0,95594.0,1.029268]
[1734931286927,0.000171,95595.0,95594.0,0.879268]
[1734931287434,0.000171,95595.0,95594.0,0.877268]
[1734931287638,0.000171,95595.0,95594.0,0.66905]
[1734931287889,0.000171,95595.0,95594.0,0.67805]
[1734931288232,0.000171,95595.0,95594.0,0.82805]
[1734931289199,0.000171,95595.0,95594.0,0.81905]
[1734931289421,0.000171,95595.0,95594.0,0.82805]
[1734931289741,0.000171,95595.0,95594.0,0.81905]
[1734931289952,0.00070736,95595.0,95594.0,0.82305]
[1734931290356,0.00070736,95595.0,95594.0,0.81905]
[1734931290578,0.00070736,95595.0,95594.0,0.82805]
[1734931291143,0.00070736,95595.0,95594.0,0.66905]
[1734931292525,0.00070736,95595.0,95594.0,0.81905]
[1734931293993,0.00070736,95595.0,95594.0,0.82305]
[1734931294554,0.38878032,95595.0,95594.0,0.66905]
[1734931294671,0.38878032,95595.0,95594.0,0.67605]
[1734931294874,0.39385544,95595.0,95594.0,0.54795]
[1734931295071,0.41875544,95595.0,95594.0,0.24545]
[1734931295505,0.41875544,95595.0,95584.0,0.09363176]
[1734931295506,0.52090156,95585.0,95584.0,0.09363176]
[1734931295860,0.39793056,95572.0,95564.0,0.09381202]
[1734931296071,0.52223896,95572.0,95564.0,0.09381202]
[1734931296397,0.52223896,95572.0,95571.0,0.5232555]
[1734931296622,0.52223896,95572.0,95571.0,0.4502555]
[1734931297005,0.52223896,95572.0,95571.0,0.4522555]
[1734931297422,0.52223896,95572.0,95571.0,0.4502555]
[1734931297602,0.52323896,95572.0,95571.0,0.4502555]
[1734931297997,0.21266456,95572.0,95571.0,0.4502555]
[1734931298469,0.21742665,95572.0,95571.0,0.4502555]
[1734931298668,0.31873505,95572.0,95571.0,0.4502555]
[1734931299094,0.31773505,95572.0,95571.0,0.4502555]
[1734931299305,0.32173505,95572.0,95571.0,0.4502555]
[1734931299570,0.31773505,95572.0,95571.0,0.4502555]
[1734931299926,0.32173505,95572.0,95571.0,0.4502555]
[1734931301756,0.32173505,95572.0,95571.0,0.3772555]
[1734931302754,0.23307049,95572.0,95571.0,0.3772555]
[1734931302955,0.32173505,95572.0,95571.0,0.3772555]
[1734931304084,0.32173505,95572.0,95571.0,0.377341]
[1734931304869,0.13176209,95572.0,95571.0,0.377341]
[1734931305066,0.00876209,95572.0,95571.0,0.377341]
[1734931305267,0.00476209,95572.0,95571.0,0.377341]
[1734931305500,0.00476209,95572.0,95571.0,0.527341]
[1734931305698,0.003,95572.0,95571.0,0.527341]
[1734931306525,0.08866456,95575.0,95572.0,0.359266]
[1734931306746,0.1,95593.0,95573.0,0.209264]
[1734931306899,0.08866456,95582.0,95575.0,0.0817]
[1734931307098,0.08866456,95582.0,95580.0,0.209248]
[1734931307303,0.08866456,95582.0,95581.0,0.15]
[1734931308555,0.08866456,95589.0,95583.0,0.15]
[1734931308758,0.0007513,95588.0,95583.0,0.15]
[1734931308921,0.00480798,95588.0,95585.0,0.2317]
[1734931309304,0.00070736,95595.0,95594.0,0.209218]
[1734931309533,0.00070736,95595.0,95594.0,0.359218]
[1734931309823,0.00551535,95595.0,95594.0,0.359218]
[1734931310027,0.00070736,95595.0,95594.0,0.359218]
[1734931312030,0.00070736,95595.0,95594.0,0.361218]
[1734931312280,0.00070736,95595.0,95594.0,0.359218]
[1734931312634,0.00470736,95595.0,95594.0,0.359218]
[1734931313853,0.08866456,95622.0,95596.0,0.15]
[1734931314078,0.08866456,95625.0,95623.0,0.0474]
[1734931314282,0.08866456,95629.0,95624.0,0.15]
[1734931314453,0.08866456,95632.0,95627.0,0.209145]
[1734931314811,0.08866456,95628.0,95627.0,0.359145]
[1734931314976,0.08866456,95628.0,95627.0,0.15]
[1734931315167,0.08866456,95630.0,95628.0,0.209143]
[1734931315367,0.08882546,95630.0,95628.0,0.209143]
[1734931315795,0.08882546,95630.0,95623.0,0.0474]
[1734931315796,0.08866456,95628.0,95623.0,0.1974]
[1734931316005,0.08866456,95624.0,95613.0,0.209176]
[1734931316298,0.08866456,95618.0,95616.0,0.15]
[1734931316444,0.08866456,95618.0,95616.0,0.81884]
[1734931317230,0.08866456,95618.0,95617.0,0.209167]
[1734931317422,0.08866456,95624.0,95618.0,0.15]
[1734931317734,0.08866456,95619.0,95618.0,0.15]
[1734931317945,0.08866456,95627.0,95620.0,0.15]
[1734931318123,0.08866456,95627.0,95621.0,0.418317]
[1734931319558,0.08866456,95627.0,95621.0,0.419317]
[1734931319813,0.08866456,95627.0,95621.0,0.418317]
[1734931321234,0.08866456,95628.0,95627.0,0.209145]
[1734931322451,0.08866456,95628.0,95627.0,0.214145]
[1734931322844,0.1001609,95630.0,95618.0,0.15]
[1734931322845,0.08866456,95623.0,95618.0,0.15]
[1734931323105,0.08866456,95622.0,95618.0,0.15]
[1734931323419,0.08866456,95619.0,95618.0,0.15]
[1734931325217,0.08866456,95619.0,95618.0,0.152]
[1734931325658,0.31297296,95619.0,95618.0,0.002]
[1734931325856,0.1,95618.0,95596.0,0.046]
[1734931326035,0.31297296,95618.0,95596.0,0.046]
[1734931326687,0.31297296,95618.0,95617.0,0.59583]
[1734931326688,0.08866456,95618.0,95617.0,0.59583]
[1734931326894,0.31297296,95618.0,95617.0,0.59583]
[1734931328361,0.31297296,95618.0,95617.0,0.59683]
[1734931328653,0.31297296,95618.0,95617.0,0.59583]
[1734931329054,0.08866456,95625.0,95617.0,0.59683]
[1734931329289,0.08866456,95621.0,95617.0,0.59583]
[1734931329464,0.08866456,95619.0,95617.0,0.59583]
[1734931329620,0.003,95618.0,95617.0,0.59583]
[1734931330001,0.08866456,95619.0,95617.0,0.59583]
[1734931330223,0.08866456,95618.0,95617.0,0.59583]
[1734931331854,0.08866456,95618.0,95617.0,0.59883]
[1734931332108,0.000171,95627.0,95625.0,0.1956]
[1734931332262,0.000171,95627.0,95626.0,0.54120194]
[1734931332470,0.000171,95627.0,95626.0,0.5401564]
[1734931333738,0.000171,95627.0,95626.0,1.2819364]
[1734931334550,0.000171,95627.0,95626.0,1.2909364]
[1734931334807,0.000171,95627.0,95626.0,1.2819364]
[1734931335220,0.000171,95627.0,95626.0,1.2869364]
[1734931335657,0.000171,95627.0,95626.0,1.2819364]
[1734931335812,0.000171,95627.0,95626.0,1.2829364]
[1734931337777,0.000171,95627.0,95626.0,1.2819364]
[1734931338945,0.000171,95627.0,95626.0,1.3237684]
[1734931340187,0.000171,95627.0,95626.0,1.22246]
[1734931340681,0.08883556,95627.0,95626.0,0.89178]
[1734931342255,0.08883556,95627.0,95626.0,0.89878]
[1734931342511,0.08883556,95627.0,95626.0,0.74878]
[1734931345967,0.21314396,95627.0,95626.0,0.74878]
[1734931346110,0.31314396,95627.0,95626.0,0.74878]
[1734931346600,0.31314396,95627.0,95626.0,0.67578]
[1734931347728,0.31314396,95627.0,95626.0,0.66878]
[1734931347849,0.31314396,95627.0,95626.0,0.67678]
[1734931348259,0.31314396,95627.0,95626.0,0.66878]
[1734931348520,0.31314396,95627.0,95626.0,0.67278]
[1734931349127,0.41314396,95627.0,95626.0,0.67278]
[1734931349962,0.41784396,95627.0,95626.0,0.67278]
[1734931350542,0.51784396,95627.0,95626.0,0.66878]
[1734931351600,0.52284396,95627.0,95626.0,0.59578]
[1734931351960,0.52284396,95627.0,95626.0,0.51212]
[1734931352156,0.29787756,95596.0,95595.0,8.55e-05]
[1734931352383,0.32087756,95596.0,95595.0,8.55e-05]
[1734931353694,0.42087756,95596.0,95595.0,8.55e-05]
[1734931354719,0.42087756,95596.0,95595.0,0.0060855]
[1734931354947,0.42087756,95596.0,95595.0,8.55e-05]
[1734931355389,0.42087756,95596.0,95595.0,0.0030855]
[1734931355597,0.1,95611.0,95595.0,0.0030855]
[1734931355598,0.08866456,95607.0,95595.0,8.55e-05]
[1734931355812,0.08866456,95605.0,95601.0,0.2092]
[1734931356020,0.08866456,95604.0,95597.0,0.209211]
[1734931356865,0.08866456,95604.0,95596.0,0.1316]
[1734931357071,0.08866456,95604.0,95598.0,0.209209]
[1734931358636,0.08866456,95604.0,95598.0,0.214209]
[1734931359254,0.08866456,95609.0,95598.0,0.423418]
[1734931359457,0.08866456,95604.0,95600.0,0.209205]
[1734931360689,0.1,95601.0,95600.0,0.005]
[1734931361004,0.08866456,95611.0,95607.0,0.15]
[1734931361379,0.08866456,95611.0,95609.0,0.15]
[1734931361584,0.08866456,95611.0,95607.0,0.15]
[1734931362557,0.08866456,95611.0,95608.0,0.209187]
[1734931363076,0.08866456,95611.0,95607.0,0.15]
[1734931364039,0.08866456,95609.0,95607.0,0.15]
[1734931364254,0.309161,95620.0,95600.0,0.0797]
[1734931364255,0.08866456,95601.0,95600.0,0.0797]
[1734931364453,0.08866456,95601.0,95590.0,0.17242128]
[1734931364454,0.08866456,95596.0,95590.0,0.17242128]
[1734931365724,0.11166456,95596.0,95590.0,0.0788]
[1734931366226,0.21166456,95596.0,95590.0,0.0788]
[1734931367886,0.21166456,95596.0,95595.0,0.0010855]
[1734931370917,0.11166456,95596.0,95595.0,8.55e-05]
[1734931371121,0.08866456,95596.0,95595.0,8.55e-05]
[1734931372354,0.1,95599.0,95595.0,8.55e-05]
[1734931372355,0.1,95599.0,95595.0,0.0020855]
[1734931372601,0.08866456,95596.0,95595.0,0.0020855]
[1734931373206,0.08866456,95598.0,95595.0,0.0020855]
[1734931373528,0.08866456,95597.0,95595.0,0.0020855]
[1734931373736,0.08866456,95596.0,95595.0,0.0020855]
[1734931374069,0.00016081,95599.0,95595.0,0.0020855]
[1734931374421,0.08866456,95597.0,95595.0,8.55e-05]
[1734931374622,0.00016081,95599.0,95595.0,8.55e-05]
[1734931374828,0.00016081,95599.0,95596.0,0.209213]
[1734931375161,0.00016081,95599.0,95598.0,0.359209]
[1734931376264,0.00016081,95599.0,95598.0,0.490409]
[1734931376473,0.00016081,95599.0,95598.0,0.5917174]
[1734931376833,0.00016081,95599.0,95598.0,0.5967174]
[1734931377777,0.00016081,95599.0,95598.0,0.5917174]
[1734931377929,0.00016081,95599.0,95598.0,0.6007174]
[1734931378767,0.00016081,95599.0,95598.0,0.499409]
[1734931379412,0.00016081,95599.0,95598.0,0.490409]
[1734931380300,0.00016081,95599.0,95598.0,0.499409]
[1734931380717,0.00016081,95599.0,95598.0,0.6007174]
[1734931381136,0.00016081,95599.0,95598.0,0.499409]
[1734931381343,0.08882537,95599.0,95598.0,0.2902]
[1734931381554,0.08882537,95599.0,95598.0,0.009]
[1734931382384,0.08866456,95596.0,95595.0,8.55e-05]
[1734931383973,0.2243084,95596.0,95595.0,0.0010855]
[1734931384192,0.2243084,95596.0,95595.0,8.55e-05]
[1734931384193,0.18866456,95596.0,95595.0,8.55e-05]
[1734931384562,0.1,95596.0,95595.0,8.55e-05]
[1734931385013,0.18866456,95596.0,95595.0,8.55e-05]
[1734931385326,0.18866456,95596.0,95595.0,0.1224855]
[1734931385546,0.00016081,95599.0,95597.0,0.0757]
[1734931385749,0.08866456,95616.0,95604.0,0.0757]
[1734931385968,0.08866456,95616.0,95614.0,0.15]
[1734931387016,0.08883556,95626.0,95622.0,0.15]
[1734931387151,0.08866456,95625.0,95622.0,0.15]
[1734931387354,0.08866456,95623.0,95622.0,0.15]
[1734931387605,0.08866456,95625.0,95622.0,0.15]
[1734931387807,0.000171,95626.0,95622.0,0.15]
[1734931388012,0.08866456,95624.0,95623.0,0.15]
[1734931388213,5.359e-05,95624.0,95623.0,0.15]
[1734931388839,0.08871815,95624.0,95623.0,0.15]
[1734931389260,0.08871815,95624.0,95620.0,0.15]
[1734931389518,5.359e-05,95624.0,95623.0,0.005]
[1734931389720,0.08871815,95624.0,95622.0,0.15]
[1734931389902,5.359e-05,95624.0,95622.0,0.15]
[1734931390073,5.359e-05,95624.0,95623.0,0.364154]
[1734931390287,5.359e-05,95624.0,95623.0,0.359154]
[1734931390896,5.359e-05,95624.0,95623.0,0.436654]
[1734931392262,5.359e-05,95624.0,95623.0,0.0825]
[1734931392463,5.359e-05,95624.0,95623.0,0.0775]
[1734931392630,0.00105359,95624.0,95623.0,0.0775]
[1734931393664,0.00205359,95624.0,95623.0,0.0775]
[1734931394733,0.00205359,95624.0,95623.0,0.3288084]
[1734931395172,0.00205359,95624.0,95623.0,0.2275]
[1734931395379,5.359e-05,95624.0,95623.0,0.2275]
[1734931395760,0.00105359,95624.0,95623.0,0.2275]
[1734931396116,0.00105359,95624.0,95623.0,0.0775]
[1734931396323,0.00105359,95624.0,95623.0,0.0795]
[1734931397328,0.00105359,95624.0,95623.0,0.438654]
[1734931397956,5.359e-05,95624.0,95623.0,0.436654]
[1734931398360,0.00105359,95624.0,95623.0,0.436654]
[1734931398745,0.00105359,95624.0,95623.0,0.5379624]
[1734931398940,0.00105359,95624.0,95623.0,0.438654]
[1734931399753,5.359e-05,95624.0,95623.0,0.436654]
[1734931399982,0.00105359,95624.0,95623.0,0.437654]
[1734931400182,0.00105359,95624.0,95623.0,0.486954]
[1734931401382,5.359e-05,95624.0,95623.0,0.5872624]
[1734931401617,5.359e-05,95624.0,95623.0,0.5882624]
[1734931402018,5.359e-05,95624.0,95623.0,0.5872624]
[1734931402226,0.00105359,95624.0,95623.0,0.5882624]
[1734931402668,0.00105359,95624.0,95623.0,0.68203706]
[1734931403866,0.00105359,95624.0,95623.0,0.37157466]
[1734931404091,0.08971815,95624.0,95623.0,0.22157466]
[1734931404288,0.08971815,95624.0,95623.0,0.17227466]
[1734931404493,0.00105359,95624.0,95623.0,0.3224288]
[1734931404741,0.00105359,95624.0,95623.0,0.2276084]
[1734931404948,5.359e-05,95624.0,95623.0,0.2266084]
[1734931405354,5.359e-05,95624.0,95623.0,0.2336084]
[1734931405560,5.359e-05,95624.0,95623.0,0.3766084]
[1734931405960,0.00105359,95624.0,95623.0,0.3776084]
[1734931406399,5.359e-05,95624.0,95623.0,0.3766084]
[1734931407779,0.00605359,95624.0,95623.0,0.3776084]
[1734931408017,0.08866456,95651.0,95625.0,0.1249]
[1734931408166,0.08866456,95651.0,95626.0,0.32935383]
[1734931408384,0.08866456,95651.0,95626.0,0.3762084]
[1734931408771,0.08866456,95659.0,95626.0,0.69669184]
[1734931409075,0.08866456,95659.0,95657.0,0.28608]
[1734931409258,0.01464239,95658.0,95657.0,0.43608]
[1734931410335,0.01464239,95658.0,95657.0,0.5373884]
[1734931411819,0.01464239,95658.0,95657.0,0.5443884]
[1734931412430,0.01464239,95658.0,95657.0,0.5453884]
[1734931412635,0.01464239,95658.0,95657.0,0.5373884]
[1734931413383,0.01464239,95658.0,95657.0,0.57088606]
[1734931414129,0.01464239,95658.0,95657.0,0.5373884]
[1734931414538,0.01464239,95658.0,95657.0,0.60584823]
[1734931415148,0.01864239,95658.0,95657.0,0.57235057]
[1734931415362,0.01464239,95658.0,95657.0,0.57235057]
[1734931415900,0.01864239,95658.0,95657.0,0.5373884]
[1734931416709,0.01864239,95658.0,95657.0,0.60584823]
[1734931417130,0.01864239,95658.0,95657.0,0.57235057]
[1734931417869,0.01464239,95658.0,95657.0,0.5373884]
[1734931418080,0.01864239,95658.0,95657.0,0.5373884]
[1734931418495,0.01464239,95658.0,95657.0,0.43608]
[1734931418700,0.01864239,95658.0,95657.0,0.43608]
[1734931419086,0.01864239,95658.0,95657.0,0.28608]
[1734931419288,0.02264239,95658.0,95657.0,0.28608]
[1734931419643,0.01464239,95658.0,95657.0,0.28608]
[1734931420260,0.01464239,95658.0,95657.0,0.43608]
[1734931420890,0.01464239,95658.0,95657.0,0.234]
[1734931421221,0.01464239,95658.0,95657.0,0.227]
[1734931421418,0.01464239,95658.0,95657.0,0.078]
[1734931421646,0.01864239,95658.0,95657.0,0.078]
[1734931421847,0.01864239,95658.0,95657.0,0.077]
[1734931422009,0.01864239,95658.0,95657.0,0.08]
[1734931422427,0.01864239,95658.0,95657.0,0.07804529]
[1734931422428,0.01464239,95658.0,95657.0,0.07804529]
[1734931422798,0.01864239,95658.0,95657.0,0.078]
[1734931423319,0.10730695,95658.0,95657.0,0.001]
[1734931423938,0.10330695,95658.0,95646.0,0.0797]
[1734931424146,0.08866456,95647.0,95646.0,0.0797]
[1734931424840,0.08866456,95647.0,95640.0,0.0489]
[1734931425029,0.1,95656.0,95640.0,0.0489]
[1734931425030,0.08866456,95641.0,95640.0,0.0489]
[1734931425497,0.08866456,95647.0,95640.0,0.0489]
[1734931425747,0.08866456,95645.0,95641.0,0.209115]
[1734931426127,0.08866456,95645.0,95642.0,0.15]
[1734931426329,0.08866456,95645.0,95641.0,0.209115]
[1734931426330,0.08866456,95645.0,95644.0,0.15]
[1734931426522,0.08866456,95650.0,95644.0,0.15]
[1734931426746,0.08866456,95650.0,95648.0,0.2091]
[1734931426954,0.08866456,95650.0,95649.0,0.15]
[1734931428162,0.08966456,95650.0,95649.0,0.007]
[1734931428357,0.08966456,95650.0,95647.0,0.15]
[1734931428699,0.09066456,95650.0,95649.0,0.007]
[1734931428905,0.002,95650.0,95649.0,0.007]
[1734931429108,0.08866456,95648.0,95647.0,0.3591]
[1734931429452,0.08866456,95655.0,95647.0,0.568202]
[1734931429681,0.08866456,95653.0,95648.0,0.00104541]
[1734931429880,0.08866456,95653.0,95644.0,0.00104539]
[1734931430084,0.08866456,95653.0,95646.0,0.15]
[1734931430291,0.08966456,95650.0,95649.0,0.009]
[1734931430695,0.08866456,95650.0,95648.0,0.209099]
[1734931430928,0.08866456,95650.0,95649.0,0.15]
[1734931431481,0.08866456,95657.0,95656.0,0.15]
[1734931432772,0.08866456,95650.0,95649.0,0.009]
[1734931433554,0.08866456,95650.0,95641.0,0.15]
[1734931433759,0.08866456,95642.0,95641.0,0.15]
[1734931434517,0.08866456,95642.0,95638.0,0.075]
[1734931434715,0.08866456,95639.0,95638.0,0.075]
[1734931435935,0.08866456,95639.0,95638.0,0.078]
[1734931436937,0.08866456,95639.0,95638.0,0.003]
[1734931437622,0.08866456,95639.0,95635.0,0.15]
[1734931437755,0.08866456,95639.0,95638.0,0.002]
[1734931438152,0.08866456,95636.0,95635.0,0.15]
[1734931438356,0.08866456,95631.0,95630.0,0.09349166]
[1734931439327,0.08866456,95629.0,95628.0,0.09349166]
[1734931440083,0.08866456,95629.0,95627.0,8.56e-05]
[1734931440239,0.001,95631.0,95627.0,8.56e-05]
[1734931440240,0.08866456,95628.0,95627.0,8.56e-05]
[1734931440442,0.001,95631.0,95628.0,0.209143]
[1734931440650,0.0001712,95650.0,95629.0,0.15104571]
[1734931440651,0.08866456,95635.0,95629.0,0.15104571]
[1734931440849,0.08866456,95635.0,95633.0,0.209132]
[1734931441051,0.08866456,95635.0,95634.0,0.15]
[1734931441874,0.08871813,95636.0,95635.0,0.359128]
[1734931442072,0.08871813,95636.0,95635.0,0.442128]
[1734931442894,0.08871813,95636.0,95635.0,0.488128]
[1734931443090,0.08871813,95636.0,95635.0,0.58161966]
[1734931443290,5.357e-05,95636.0,95635.0,0.68292806]
[1734931443757,5.357e-05,95636.0,95635.0,0.5894364]
[1734931444334,5.357e-05,95636.0,95635.0,0.72967389]
[1734931444741,5.357e-05,95636.0,95635.0,0.62836549]
[1734931445150,0.00105357,95636.0,95635.0,0.63736549]
[1734931445340,0.00105357,95636.0,95635.0,0.497128]
[1734931445540,5.357e-05,95636.0,95635.0,0.488128]
[1734931446364,5.357e-05,95636.0,95635.0,0.72249833]
[1734931446889,5.357e-05,95636.0,95635.0,0.82380673]
[1734931447424,5.357e-05,95636.0,95635.0,0.5894364]
[1734931447948,0.00022477,95636.0,95635.0,0.5934364]
[1734931448379,0.00022477,95636.0,95635.0,0.5894364]
[1734931448783,0.00022477,95636.0,95635.0,0.62201205]
[1734931449043,0.00722477,95636.0,95635.0,0.62301205]
[1734931449455,0.00722477,95636.0,95635.0,0.62201205]
[1734931449657,0.01522477,95636.0,95635.0,0.62301205]
[1734931450284,0.01522477,95636.0,95635.0,0.5904364]
[1734931450907,0.00022477,95636.0,95635.0,0.5894364]
[1734931451284,0.00722477,95636.0,95635.0,0.5904364]
[1734931451706,0.00022477,95636.0,95635.0,0.5894364]
[1734931451949,0.00722477,95636.0,95635.0,0.5904364]
[1734931452120,0.00722477,95636.0,95635.0,0.5894364]
[1734931452474,0.01422477,95636.0,95635.0,0.62303439]
[1734931452832,0.00722477,95636.0,95635.0,0.62203439]
[1734931453934,0.0001712,95650.0,95649.0,0.359097]
[1734931454135,0.00022477,95650.0,95649.0,0.5883054]
[1734931454341,0.00022477,95650.0,95649.0,0.62091762]
[1734931455370,0.00922477,95650.0,95649.0,0.62191762]
[1734931457046,0.00922477,95650.0,95649.0,1.14465762]
[1734931457665,0.0001708,95668.0,95657.0,0.35908]
[1734931457873,0.0001708,95668.0,95657.0,0.62340062]
[1734931458082,0.0001708,95668.0,95657.0,1.14610062]
[1734931458495,0.0001708,95668.0,95657.0,1.15743606]
[1734931458902,0.0001708,95668.0,95657.0,1.43879517]
[1734931459107,0.0001708,95668.0,95665.0,0.359062]
[1734931459311,0.0001708,95668.0,95665.0,0.62338262]
[1734931459526,0.0001708,95668.0,95665.0,1.15737806]
[1734931460986,0.0001708,95668.0,95667.0,0.13463544]
[1734931461193,0.0001708,95668.0,95667.0,0.94225094]
[1734931461373,0.0001708,95720.0,95678.0,0.209034]
[1734931461582,0.0001708,95720.0,95678.0,1.1062324]
[1734931461583,0.00033155,95679.0,95678.0,1.1062324]
[1734931466639,0.00033155,95679.0,95678.0,1.11756784]
[1734931466762,0.00033155,95679.0,95678.0,1.1062324]
[1734931469580,0.00033155,95679.0,95678.0,1.33972266]
[1734931470342,0.00033155,95679.0,95678.0,1.44992266]
[1734931470545,0.00033155,95679.0,95678.0,1.33972266]
[1734931471401,0.08866456,95712.0,95686.0,0.1]
[1734931471617,0.00070653,95691.0,95690.0,0.5854164]
[1734931471823,0.00070653,95691.0,95690.0,1.1079364]
[1734931472268,0.00070653,95691.0,95690.0,1.11927184]
[1734931472269,5.3e-07,95691.0,95690.0,1.11927184]
[1734931472475,5.3e-07,95691.0,95690.0,1.1079364]
[1734931472904,5.3e-07,95691.0,95690.0,1.34142666]
[1734931473931,5.3e-07,95691.0,95690.0,1.34542666]
[1734931474333,5.3e-07,95691.0,95690.0,1.34942666]
[1734931474547,5.3e-07,95691.0,95690.0,1.30246973]
[1734931474715,5.3e-07,95691.0,95690.0,1.29446973]
[1734931474917,5.3e-07,95691.0,95690.0,1.29846973]
[1734931475592,5.3e-07,95691.0,95690.0,1.1119364]
[1734931476050,5.3e-07,95691.0,95690.0,1.22327184]
[1734931476258,5.3e-07,95691.0,95690.0,1.36310245]
[1734931476464,5.3e-07,95691.0,95690.0,1.25176701]
[1734931476679,5.3e-07,95691.0,95690.0,1.24776701]
[1734931477047,5.3e-07,95691.0,95690.0,1.25176701]
[1734931477251,5.3e-07,95691.0,95690.0,1.29446973]
[1734931477486,5.3e-07,95691.0,95690.0,1.29746973]
[1734931478044,5.3e-07,95691.0,95690.0,1.30046973]
[1734931478247,5.3e-07,95691.0,95690.0,1.1139364]
[1734931478693,5.3e-07,95691.0,95690.0,0.9639364]
[1734931479343,5.3e-07,95691.0,95690.0,0.9579364]
[1734931479742,5.3e-07,95691.0,95690.0,0.8358364]
[1734931479945,5.3e-07,95691.0,95690.0,0.9828364]
[1734931481828,5.3e-07,95691.0,95690.0,0.98209757]
[1734931484247,5.3e-07,95691.0,95690.0,1.06069757]
[1734931484397,5.3e-07,95691.0,95690.0,1.10249857]
[1734931486296,5.3e-07,95691.0,95690.0,1.10349857]
[1734931486529,0.00017153,95691.0,95690.0,1.13497581]
[1734931488011,0.00017153,95691.0,95690.0,1.13597581]
[1734931488430,0.00017153,95691.0,95690.0,1.22915483]
[1734931489034,0.00017153,95691.0,95690.0,1.22815483]
[1734931489393,0.00017153,95691.0,95690.0,1.13497581]
[1734931490003,0.00017153,95691.0,95690.0,1.13797581]
[1734931492208,0.00017153,95691.0,95690.0,1.23497581]
[1734931492408,0.00017153,95691.0,95690.0,1.23697581]
[1734931492568,0.00017153,95691.0,95690.0,1.2303455]
[1734931492987,0.00017153,95691.0,95690.0,1.2323455]
[1734931493333,0.00017153,95691.0,95690.0,1.2303455]
[1734931493612,0.00017153,95691.0,95690.0,1.2333455]
[1734931493823,0.00017153,95691.0,95690.0,1.27803035]
[1734931494224,0.00017153,95691.0,95690.0,1.28103035]
[1734931494785,0.00017153,95691.0,95690.0,1.14097581]
[1734931495394,0.00017153,95691.0,95690.0,1.13497581]
[1734931496463,0.00017153,95691.0,95690.0,1.05637581]
[1734931497872,0.00017153,95691.0,95690.0,1.05646131]
[1734931500562,0.00017153,95691.0,95690.0,1.33701786]
[1734931501361,0.00017153,95691.0,95690.0,1.05646131]
[1734931502626,0.00017153,95691.0,95690.0,0.95515291]
[1734931503005,0.08883609,95691.0,95690.0,0.95515291]
[1734931503204,0.00017153,95691.0,95690.0,1.05646131]
[1734931505328,0.00017153,95691.0,95690.0,1.47122474]
[1734931505641,0.08883609,95691.0,95690.0,1.01164717]
[1734931505865,0.18883609,95691.0,95690.0,0.93736893]
[1734931506078,0.18883609,95691.0,95690.0,0.5226055]
[1734931506079,0.33294449,95691.0,95690.0,0.5226055]
[1734931506685,0.33294449,95691.0,95690.0,0.4496055]
[1734931506911,0.33294449,95691.0,95690.0,0.4586055]
[1734931507061,0.33294449,95691.0,95690.0,0.4496055]
[1734931507949,0.20863609,95691.0,95690.0,0.4496055]
[1734931508261,0.23163609,95691.0,95690.0,0.4496055]
[1734931508393,0.33294449,95691.0,95690.0,0.4496055]
[1734931508612,0.43294449,95691.0,95690.0,0.4586055]
[1734931508821,0.43294449,95691.0,95690.0,0.4230055]
[1734931509241,0.43294449,95691.0,95690.0,0.4320055]
[1734931509597,0.43294449,95691.0,95690.0,0.4230055]
[1734931509882,0.43294449,95691.0,95690.0,0.4320055]
[1734931510184,0.43294449,95691.0,95690.0,0.4230055]
[1734931510333,0.43294449,95691.0,95690.0,0.4270055]
[1734931510536,0.08883609,95691.0,95690.0,0.4270055]
[1734931511548,0.08883609,95691.0,95690.0,0.4230055]
[1734931511747,0.08883609,95691.0,95690.0,0.5730055]
[1734931511949,0.08883609,95691.0,95690.0,0.5820055]
[1734931512153,0.00017153,95691.0,95690.0,0.5820055]
[1734931512432,0.08883609,95691.0,95690.0,0.5820055]
[1734931512850,0.00017153,95691.0,95690.0,0.5820055]